Cogmind - Beta 13 X1 @@@ ROGUE MODE // 2023.07.20 @ 02:46:39 Player: deadnoob Result: Destroyed by 8R-AWN with 8R-AWN's Boregun Performance ------------- Evolutions (0) 0 Regions Visited (3) 600 Robots Destroyed (19) 95 Value Destroyed (429) 429 Prototype IDs (23) 460 Alien Tech Used (0) 0 Bonus (300) 300 TOTAL SCORE: 1884 Bonus ------- Aligned with FarCom 300 Cogmind --------- Core Integrity 0/250 Matter 146/300 Energy 125/125 System Corruption 0% Temperature Cool (0) Movement Core (850) Ox16 Location -10/Exiles Parts ------- > --- POWER (1) -------- Light Ion Engine > --- PROPULSION (2) --- Wheel > --- UTILITY (2) ------ High-capacity Storage Unit Improved Trap Extractor (0/6) > --- WEAPON (2) ------- Assault Rifle Light Assault Rifle > --- INVENTORY (20) --- Medium Storage Unit Medium Matter Pod (100) Medium Matter Pod (100) 0b10 Alert Chip Grenade Launcher Missile Launcher Mining Laser Hammer Peak State ------------ > --- POWER ------------ Ion Engine > --- PROPULSION ------- Light Treads Light Treads > --- UTILITY ---------- High-capacity Storage Unit Insulated Plating > --- WEAPON ----------- Light Assault Rifle Minigun > --- INVENTORY -------- Light Ion Engine Nuclear Core Nuclear Core Fission Core Light Treads Wheel Medium Storage Unit Medium Matter Pod Medium Matter Pod Large Matter Pod Improved Trap Extractor Assault Rifle Assault Rifle Assault Rifle Grenade Launcher Missile Launcher Mining Laser Hammer [Rating: 14] Favorites ----------- Power Ion Engine Engine Ion Engine Propulsion Light Treads Treads Light Treads Leg Aluminum Leg Wheel Wheel Utility Insulated Plating Device Improved Heat Sink Storage High-capacity Storage Unit Protection Insulated Plating Weapon Light Assault Rifle Ballistic Gun Light Assault Rifle Launcher Missile Launcher Build | -11 -10 -10 -10 ------- Run | Jun Mat Min Exi Slots Evolved . | . . . . Power . | . . . . Propulsion . | . . . . Utility . | . . . . Weapon . | . . . . Parts Attached 26 | . 9 5 12 Power 2 | . 1 . 1 Engine 2 | . 1 . 1 Core . | . . . . Reactor . | . . . . Propulsion 8 | . 3 1 4 Treads 6 | . 3 1 2 Leg . | . . . . Wheel 2 | . . . 2 Hover . | . . . . Flight . | . . . . Utility 6 | . 3 2 1 Device 3 | . 2 . 1 Storage 2 | . 1 1 . Processor . | . . . . Hackware . | . . . . Protection 1 | . . 1 . Artifact . | . . . . Weapon 10 | . 2 2 6 Energy Gun . | . . . . Energy Cannon . | . . . . Ballistic Gun 9 | . 2 2 5 Ballistic Cannon . | . . . . Launcher 1 | . . . 1 Special Weapon . | . . . . Impact Weapon . | . . . . Slashing Weapon . | . . . . Piercing Weapon . | . . . . Special Melee Weapon . | . . . . Unidentified Prototypes . | . . . . Parts Lost 8 | . . . 8 Power 1 | . . . 1 Propulsion 3 | . . . 3 Utility 1 | . . . 1 Weapon 3 | . . . 3 Highest Loss Streak 8 | . . . 8 To Critical Strikes 4 | . . . 4 Average Slot Usage (%) 99 | . 97 100 100 Engine 13 | . 13 14 14 Treads 26 | . 22 28 26 Leg 1 | . 6 . . Device 3 | . 11 . . Storage 14 | . 14 14 14 Protection 10 | . . 13 13 Ballistic Gun 27 | . 27 28 27 Naked Turns . | . . . . Heaviest Build 56 | 13 19 52 56 Greatest Support 40 | 20 40 40 40 Greatest Overweight (x) 5 | . . 1 5 Average Overweight (x) . | . . . 1 Largest Inventory Capacity 20 | . 10 20 20 Average Capacity 16 | . 9 17 20 Most Carried 19 | . 10 15 19 Average Carried 13 | . 7 13 17 Final Capacity 20 | 8 10 20 20 Final Carried 15 | 6 10 15 8 Class Distribution -------------------- 100% | Mutant Dominant Class ---------------- Mutant | -10/Materials Mutant | -10/Mines Mutant | -10/Exiles Resources | -11 -10 -10 -10 ----------- Run | Jun Mat Min Exi Matter Collected 1041 | 200 278 313 250 Remotely . | . . . . Salvage Created 560 | . 373 184 3 Parts 45 | . 33 12 . Haulers Intercepted 1 | . 1 . . Recyclers Shooed . | . . . . Parts Field Recycled . | . . . . Retrieved Matter . | . . . . Parts Self-Destructed . | . . . . Prevented . | . . . . Kills | -11 -10 -10 -10 ------- Run | Jun Mat Min Exi Combat Hostiles Destroyed 19 | . 11 4 4 Guns 15 | . 11 4 . AOE 4 | . . . 4 Classes Destroyed 7 | . 5 1 1 Worker 1 | . . 1 . Builder 1 | . 1 . . Hauler 1 | . 1 . . Watcher 1 | . 1 . . Swarmer 6 | . 6 . . Grunt 9 | . 5 4 . Assembled 4 | . . . 4 Best Kill Streak 7 | . 7 2 4 Combat Bots Only 6 | . 6 2 4 Max Kills in Single Turn 2 | . 1 1 2 Gunslinging . | . . . . Exploded 2 | . . . 2 Melee . | . . . . Uniques/NPCs Destroyed . | . . . . Combat | -11 -10 -10 -10 -------- Run | Jun Mat Min Exi Damage Taken 1386 | . 332 172 882 Core 250 | . 58 49 143 Absorbed by Shields . | . . . . Core Remaining (%) 100 | 100 . . . Volleys Fired 83 | . 37 14 32 Largest 2 | . 2 2 2 Hottest 45 | . 40 45 45 Shots Fired 160 | . 74 28 58 Gun 156 | . 74 28 54 Cannon . | . . . . Launcher 4 | . . . 4 Special . | . . . . Kinetic 156 | . 74 28 54 Thermal . | . . . . Explosive 4 | . . . 4 Electromagnetic . | . . . . Robot Hit Streak 17 | . 7 7 17 Robot Miss Streak 4 | . 4 4 2 Penetration Max . | . . . . Secondary Targets 4 | . 3 1 . Max Gunslinging Chain 1 | . 1 1 . Shots Hit Robots 108 | . 47 17 44 Core Hits 50 | . 23 11 16 Critical Kills . | . . . . Critical Parts Destroyed 1 | . . 1 . Critical Strikes 1 | . . 1 . Destroy 1 | . . 1 . Melee Attacks . | . . . . Impact . | . . . . Slashing . | . . . . Piercing . | . . . . Sneak Attacks . | . . . . Combat Hostiles . | . . . . Follow-up Attacks . | . . . . Damage Inflicted 1518 | . 485 229 804 Guns 1268 | . 485 202 581 Cannons . | . . . . Explosions 223 | . . . 223 Melee . | . . . . Ramming 27 | . . 27 . Kinetic 1268 | . 485 202 581 Thermal . | . . . . Explosive 223 | . . . 223 Electromagnetic . | . . . . Impact . | . . . . Slashing . | . . . . Piercing . | . . . . Highest Corruption . | . . . . Average Corruption . | . . . . Corruption Purged . | . . . . Corruption Blocked . | . . . . Overload Shots . | . . . . Overflow Damage . | . . . . Projectiles . | . . . . Explosions . | . . . . Melee . | . . . . Knockbacks . | . . . . Impact . | . . . . Kinetic . | . . . . Secondary . | . . . . Self-Inflicted Damage . | . . . . Shots . | . . . . Rammed 3 | . . 3 . Targets Rammed 3 | . . 3 . Kicked . | . . . . Crushed . | . . . . Highest Temperature 138 | . 9 138 48 Average Temperature 37 | . 8 58 18 Received Heat Transfer 183 | . 90 93 . Siege Activations . | . . . . Robots Corrupted . | . . . . Combat Hostiles . | . . . . Parts Fried . | . . . . Impact Corruptions . | . . . . Robots Melted . | . . . . Combat Hostiles . | . . . . Parts Melted . | . . . . Heat Transferred . | . . . . Parts Sabotaged . | . . . . Parts Stolen . | . . . . Parts Stripped . | . . . . Power Chain Reactions . | . . . . Missiles Intercepted . | . . . . Alert | -11 -10 -10 -10 ------- Run | Jun Mat Min Exi Peak Influence 318 | . 318 140 . Initial 90 | . . 90 . Average 95 | . 182 48 . Maximum Alert Level 1 | . 1 . . Low Security (%) 82 | . 50 100 . Level 1 17 | . 49 . . Level 2 . | . . . . Level 3 . | . . . . Level 4 . | . . . . Level 5 . | . . . . High Security . | . . . . Max Security . | . . . . Squads Dispatched 3 | . 3 . . Investigation 1 | . 1 . . Extermination . | . . . . Reinforcement 2 | . 2 . . Assault . | . . . . Garrison . | . . . . Intercept . | . . . . Searches Triggered . | . . . . Construction Impeded . | . . . . Haulers Reinforced . | . . . . Active Scanning Responses . | . . . . Cargo Convoy Interrupts . | . . . . Stealth | -11 -10 -10 -10 --------- Run | Jun Mat Min Exi Distress Signals 1 | . 1 . . Communications Jammed . | . . . . Distress Signals . | . . . . Times Spotted 28 | . 18 4 6 Peak Tracking Total 11 | . 7 2 11 Tactical Retreats 1 | . . . 1 Traps | -11 -10 -10 -10 ------- Run | Jun Mat Min Exi Traps Triggered 2 | . 2 . . Indirectly . | . . . . Trap Hack Attempts . | . . . . Triggered . | . . . . Disarmed 6 | . 6 . . Reprogrammed . | . . . . Reused . | . . . . Traps Extracted . | . . . . Installed . | . . . . Triggered . | . . . . Machines | -11 -10 -10 -10 ---------- Run | Jun Mat Min Exi Machines Disabled 5 | . . . 5 Max in Single Turn 2 | . . . 2 Machines Repaired . | . . . . Machines Sabotaged . | . . . . Overloaded Fab Kills . | . . . . Hacking | -11 -10 -10 -10 --------- Run | Jun Mat Min Exi Machines Accessed 7 | . 4 1 2 Terminals 2 | . 2 . . Fabricators . | . . . . Repair Stations 1 | . 1 . . Recycling Units 1 | . 1 . . Scanalyzers . | . . . . Garrison Access . | . . . . Total Hacks 15 | . 12 1 2 Successful 9 | . 6 1 2 Failed 6 | . 6 . . Catastrophic 2 | . 2 . . Database Lockouts . | . . . . Manual 9 | . 8 . 1 Terminals 8 | . 8 . . Fabricators . | . . . . Repair Stations 3 | . 3 . . Recycling Units 1 | . 1 . . Scanalyzers . | . . . . Garrison Access . | . . . . Terminal Hacks 6 | . 3 1 2 Record 1 | . . . 1 Robot Analysis 1 | . 1 . . Open Door 1 | . . 1 . Disarm Traps 1 | . 1 . . Zone Layout 1 | . 1 . . Derelict Proto ID Bank 1 | . . . 1 Fabricator Hacks . | . . . . Repair Station Hacks 1 | . 1 . . Scan Component 1 | . 1 . . Recycling Unit Hacks . | . . . . Scanalyzer . | . . . . Garrison Access Hacks . | . . . . Unauthorized Hacks 2 | . 2 . . Terminals 1 | . 1 . . Track 1 | . 1 . . Fabricators . | . . . . Repair Stations . | . . . . Recycling Units 1 | . 1 . . Tunnel 1 | . 1 . . Scanalyzers . | . . . . Garrison Access . | . . . . Data Cores Recovered . | . . . . Used . | . . . . Hacking Detections 3 | . 3 . . Full Trace Events 2 | . 2 . . Feedback Events . | . . . . Feedback Blocked . | . . . . Robot Schematics Acquired . | . . . . Robots Built . | . . . . Authchips . | . . . . Time . | . . . . Total Robot Build Rating . | . . . . Part Schematics Acquired . | . . . . Parts Built . | . . . . Authchips . | . . . . Time . | . . . . Total Part Build Rating . | . . . . Parts Repaired . | . . . . Time . | . . . . Parts Recycled . | . . . . Recycled Matter . | . . . . Retrieved Matter . | . . . . Retrieved Components . | . . . . Parts Scanalyzed . | . . . . Part Schematics Acquired . | . . . . Parts Damaged . | . . . . Bothacking | -11 -10 -10 -10 ------------ Run | Jun Mat Min Exi Used RIF Installer . | . . . . Robots Hacked . | . . . . Non-combat . | . . . . Combat . | . . . . Robot Hacks Applied . | . . . . Relay Couplers Released . | . . . . Fabnet Peak Effective % . | . . . . Robots Rewired . | . . . . Allies Hacked . | . . . . Hacks Repelled . | . . . . Allies | -11 -10 -10 -10 -------- Run | Jun Mat Min Exi Total Allies . | . . . . Largest Group . | . . . . Highest-Rated Group . | . . . . Highest-Rated Ally . | . . . . Total Orders . | . . . . Ally Attacks . | . . . . Total Damage . | . . . . Kills . | . . . . Allies Corrupted . | . . . . Allies Melted . | . . . . Intel | -11 -10 -10 -10 ------- Run | Jun Mat Min Exi Robot Analysis Total 1 | . 1 . . Derelict Logs Recovered 2 | . . 2 . Drone Launches . | . . . . Drone Recoveries . | . . . . Exploration | -11 -10 -10 -10 ------------- Run | Jun Mat Min Exi Turns Passed 2894 | . 703 1287 904 Spaces Moved 1269 | 1 359 581 328 Core . | . . . . Treads 1171 | . 289 581 301 Legs 71 | 1 70 . . Wheels 27 | . . . 27 Hover . | . . . . Flight . | . . . . Fastest Speed 120 | 120 120 160 155 Average Speed 199 | 120 152 210 233 Slowest Speed 240 | 120 160 240 240 Overloaded Moves . | . . . . Propulsion Burnouts . | . . . . Robots Hopped . | . . . . Cave-ins Triggered . | . . . . Exploration Rate (%) 60 | 1 75 99 68 Regions Visited 3 Branch Regions 2 Pre-discovered Areas 2 | . 1 . 1 Known Exits Taken . | . . . . Unknown Exits Taken 3 | 1 1 1 . Scrap Searched 1 | . . 1 . Spaces Dug . | . . . . Terrain Destroyed 29 | . . . 29 Melee . | . . . . Projectile . | . . . . AOE 29 | . . . 29 Terrain Rammed . | . . . . Walls Destroyed . | . . . . Machines Disabled . | . . . . Actions | -11 -10 -10 -10 --------- Run | Jun Mat Min Exi Total 1483 | . 447 623 413 Wait 66 | . 30 7 29 Move 1266 | . 358 580 328 Hop . | . . . . Pick Up 22 | . 8 8 6 Fast Attach 7 | . 6 1 . Attach 8 | . . 1 7 Detach . | . . . . Swap 11 | . 3 3 5 Drop 17 | . 5 6 6 Fire 83 | . 37 14 32 Melee . | . . . . Ram . | . . . . Kick . | . . . . Crush 3 | . . 3 . Escape Stasis . | . . . . Rewire . | . . . . Trap . | . . . . Miscellaneous . | . . . . Route ------- -11/Junkyard -10/Materials (discovered 5 exits: [*Mat x2] / *Min x2 / [Sub]) -10/Mines (discovered 4 exits: [*Mat x2] / *Exi / [*Sub]) -10/Exiles History --------- Turn | Location | Event 1 | -11/Junkyard | Discovered new exit (range 0) 1 | -11/Junkyard | Entered Materials 15 | -10/Materials | Discovered new exit (range 9) 117 | -10/Materials | Discovered new exit (range 10) 265 | -10/Materials | Discovered new exit (range 5) 276 | -10/Materials | Discovered new exit (range 10) 301 | -10/Materials | Build established: Mutant 460 | -10/Materials | Discovered new exit (range 16) 704 | -10/Materials | Entered Mines 723 | -10/Mines | Met a Derelict who couldn't figure out how to use a Trap Extractor 769 | -10/Mines | Learned Materials interactive machine intel 1045 | -10/Mines | Deemed a non-threat by the Exiles lab entrance 1045 | -10/Mines | Discovered new exit (range 5) 1111 | -10/Mines | Discovered new exit (range 4) 1146 | -10/Mines | Discovered new exit (range 8) 1518 | -10/Mines | Learned 2 Materials zone layouts 1751 | -10/Mines | Discovered new exit (range 11) 1991 | -10/Mines | Entered Exiles 2059 | -10/Exiles | Met 8R-AWN 2100 | -10/Exiles | Met EX-HEX 2194 | -10/Exiles | Met EX-DEC 2203 | -10/Exiles | Learned location of Zion (-7) 2429 | -10/Exiles | Met EX-BIN 2462 | -10/Exiles | Aligned with FarCom system 2465 | -10/Exiles | Given EX-Vault access code 2520 | -10/Exiles | Opened EX-Vault 2534 | -10/Exiles | Found 0b10 Alert Chip 2588 | -10/Exiles | Warned to stay clear of 0b10 Research branches 2725 | -10/Exiles | Attacked by the Exiles 2823 | -10/Exiles | Core integrity fell below 50% 2866 | -10/Exiles | Core integrity fell below 20% 2895 | -10/Exiles | Destroyed by 8R-AWN with 8R-AWN's Boregun Last Messages --------------- 02853_ Minigun destroyed. 02853_ HV Slug penetrates Earth. 02855_ Penetrated by HV Slug. 02855_ Ion Engine destroyed. 02855_ Penetrated by HV Slug. 02858_ HV Slug penetrates Earth. 02858_ Penetrated by HV Slug. 02861_ HV Slug penetrates Earth. 02861_ Penetrated by HV Slug. 02865_ HV Slug penetrates Earth. 02865_ Penetrated by HV Slug. 02878_ Critical hit (Destroy). 02878_ Lgt. Treads destroyed. 02882_ Penetrated by HV Slug. 02882_ Assault Rifle destroyed. 02882_ HV Slug penetrates Wall. 02886_ Penetrated by HV Slug. 02895_ Critical hit (Destroy). 02895_ Lgt. Treads destroyed. 02895_ Penetrated by HV Slug. Map ----- +----------------------------------------------------+ | ?????????????????????????????????????????????????? | | ?????????????????????????????????????????????????? | | ?????????????????????????????????????????????????? | | ?????????????????????????????????????????????????? | | ?????????????????????????????????????????????????? | | ?????????????????????????????????????????????????? | | ?????????????????????????????????????????????????? | | ?????????????????????????????????????????????????? | | ?????????????????????????????????????????????????? | | ?????????????????????????????????????????????????? | | ?????????????????????????????#######?????????????? | | ??????????????? ######???????#!!! "#?????????????? | | ?????????????? #""#??????# "#?????????????? | | ?????????????? ??????# "#?????????????? | | ?????????????" #????## ""#????????????## | | ?????????????? #####" ""#???????????? | | ??????????????# ##" ""#????????????" | | ???????????????# #" ###????????????" | | ??????????????????# ###?????????"" | | ?????????????????????# #?????????"" | | ?????????????????????### #????????? | | ???????????????######## ##??????????" | | ???????????????# !!"""" #??????????# | | ???????????????#! g"## ##???### | | ???????????????#! ### #####X# | | ???????????????#! @;#?## | | ???????????????# !""""" ;;; #?#" | | ???????????????########## # #?## | | ????????????????????????# # #?? * | | ????????????????????????# #? #??###### | | ????????????????????????# #??#???????# | | ????????????????????????# #???????????## | | ????????????????????????# #????????????##" | | ????????????????????????# #?????????????#""" | | ????????????????????????? ?????????????##" | | ????????????????????????? ?????????????#"" | | ????????????????????????? ?????????????#""" | | ????????????????????????? ????????????#""" | | ????????????????????????? ????????????#""" | | ????????????????????????? ????????????#"" | | ????????????????????????? ????????????#""" | | ??????????????????????????????????????#"" | | ??????????????????????????????????????##"" | | ???????????????????????????????????????#"""" | | ???????????????????????????????????????## | | ????????????????????????????????????????#" | | ????????????????????????????????????????#"""" | | ????????????????????????????????????????#"" | | ?????????????????????????????????????????" | | ?????????????????????????????????????????""" | +----------------------------------------------------+ Best States ------------- Heat Dissipation 39 Energy Generation 10 Energy Capacity 250 Matter Stores 300 Matter Capacity 300 Sight Range 16 Terrain Scan Density 10 Armor Coverage 150 Resistance: EM 15 Evasion (%) 55 Recoil Reduction 2 Trap Extractor Capacity 6 Item Schematics ----------------- None Robot Schematics ------------------ None Fabricated ------------ Nothing Alien Tech Used ----------------- None Achievements -------------- None Challenges ------------ None Game ------ Seed BattleStormDatajack Manual? 0 Play Time 00:14:34 Cumulative 222.6 hours Start 2023.07.20 @ 02:35:24 End 2023.07.20 @ 02:46:39 Sessions 1 Manual Loads 0 Difficulty Rogue Special Mode None Game No. 310 Rogue 310 Adventurer 0 Explorer 0 Win Type - Total 7 Types 6/0/0/1/0/0/0/0/0 Lore% 79 Gallery% 85 Achievement% 69 Wizard Run 0 Options --------- ASCII 0 Keyboard 0 Movement Numpad Keybinds 0 Fullscreen 2 Font 18/SmallcapsGlow Map View 76x50 Tactical HUD 1 Map Filters NONE Filters NONE Steam 1 RUN: a30d02e8-fca7-4d67-a440-e6f754b3fdaa